[Event "Early-Titled-Tuesday-Blitz-April-23-2024"]
[Site "Chess.com"]
[Date "2024.04.23"]
[Round "4"]
[White "ragnaroek66"]
[Black "MIss_MIaMI"]
[Result "1-0"]
[WhiteElo "2551"]
[BlackElo "2351"]
[TimeControl "180+1"]
[EndTime "8:39:57 PDT"]
[Termination "ragnaroek66 won on time"]

1. d4 {[%clk 0:03:00.9]} 1... c5 {[%clk 0:03:00.2]} 2. d5 {[%clk 0:03:00.5]}
2... g6 {[%clk 0:03:00.7]} 3. c4 {[%clk 0:02:59.7]} 3... Bg7 {[%clk 0:03:01.3]}
4. Nc3 {[%clk 0:02:59.7]} 4... Bxc3+ {[%clk 0:03:01.9]} 5. bxc3 {[%clk 0:03:00]}
5... Qa5 {[%clk 0:03:02.4]} 6. Bd2 {[%clk 0:02:59.4]} 6... f5 {[%clk 0:03:02.8]}
7. e3 {[%clk 0:02:55.9]} 7... e5 {[%clk 0:03:01.5]} 8. dxe6 {[%clk 0:02:47.4]}
8... dxe6 {[%clk 0:03:02.4]} 9. e4 {[%clk 0:02:43.1]} 9... Nf6 {[%clk
0:02:54.9]} 10. Bd3 {[%clk 0:02:37.9]} 10... fxe4 {[%clk 0:02:29]} 11. Bc2
{[%clk 0:02:36.8]} 11... Qa6 {[%clk 0:02:29.1]} 12. Qe2 {[%clk 0:02:35.4]} 12...
O-O {[%clk 0:02:28.2]} 13. Nh3 {[%clk 0:02:34.5]} 13... e5 {[%clk 0:02:25]} 14.
Ng5 {[%clk 0:02:29.3]} 14... Bg4 {[%clk 0:02:24.6]} 15. Qf1 {[%clk 0:02:29.5]}
15... Qc6 {[%clk 0:01:44.2]} 16. h3 {[%clk 0:02:26]} 16... Bf5 {[%clk
0:01:37.5]} 17. g4 {[%clk 0:01:52.1]} 17... e3 {[%clk 0:01:37.5]} 18. gxf5
{[%clk 0:01:48]} 18... exd2+ {[%clk 0:01:35.2]} 19. Kxd2 {[%clk 0:01:48.7]}
19... Rd8+ {[%clk 0:01:20.3]} 20. Kc1 {[%clk 0:01:48]} 20... e4 {[%clk
0:01:09.2]} 21. fxg6 {[%clk 0:01:39.4]} 21... hxg6 {[%clk 0:01:10.1]} 22. Qe1
{[%clk 0:01:34]} 22... Re8 {[%clk 0:01:01.8]} 23. Rg1 {[%clk 0:01:33.3]} 23...
Kg7 {[%clk 0:00:56.4]} 24. h4 {[%clk 0:01:28.1]} 24... Qd6 {[%clk 0:00:53]} 25.
Kb2 {[%clk 0:01:22.4]} 25... Qf4 {[%clk 0:00:50.7]} 26. Rd1 {[%clk 0:01:11.3]}
26... Nc6 {[%clk 0:00:46.2]} 27. h5 {[%clk 0:01:11]} 27... Ne5 {[%clk
0:00:28.7]} 28. hxg6 {[%clk 0:01:05.8]} 28... Nxc4+ {[%clk 0:00:25.8]} 29. Ka1
{[%clk 0:01:05.7]} 29... Qe5 {[%clk 0:00:16.7]} 30. Nf7 {[%clk 0:01:01.5]} 30...
Qe7 {[%clk 0:00:11.8]} 31. Bb3 {[%clk 0:01:00.4]} 31... b5 {[%clk 0:00:11.6]}
32. Bxc4 {[%clk 0:01:00.1]} 32... bxc4 {[%clk 0:00:12.5]} 33. Qe3 {[%clk
0:01:00.6]} 33... Rh8 {[%clk 0:00:09.1]} 34. Nxh8 {[%clk 0:00:37.9]} 34... Rxh8
{[%clk 0:00:10]} 35. Rh1 {[%clk 0:00:38]} 35... Nh5 {[%clk 0:00:09.4]} 36. f3
{[%clk 0:00:31.6]} 36... Qe5 {[%clk 0:00:07]} 37. Rd7+ {[%clk 0:00:29.8]} 37...
Kf6 {[%clk 0:00:06]} 38. Rg1 {[%clk 0:00:26.8]} 38... Ng7 {[%clk 0:00:01.1]} 39.
Rf7+ {[%clk 0:00:26]} 39... Ke6 {[%clk 0:00:01.8]} 40. f4 {[%clk 0:00:24]} 1-0

[Event "Early-Titled-Tuesday-Blitz-April-23-2024"]
[Site "Chess.com"]
[Date "2024.04.23"]
[Round "4"]
[White "manmanlai1"]
[Black "RasSanti"]
[Result "1-0"]
[WhiteElo "2527"]
[BlackElo "2301"]
[TimeControl "180+1"]
[EndTime "8:39:58 PDT"]
[Termination "manmanlai1 won on time"]

1. e4 {[%clk 0:03:00.9]} 1... c6 {[%clk 0:03:00]} 2. d4 {[%clk 0:03:00.4]} 2...
d5 {[%clk 0:03:00.9]} 3. e5 {[%clk 0:03:00.9]} 3... Bf5 {[%clk 0:03:00.4]} 4. h4
{[%clk 0:02:59.8]} 4... h5 {[%clk 0:02:59.4]} 5. Bd3 {[%clk 0:02:58.2]} 5...
Bxd3 {[%clk 0:02:57.9]} 6. Qxd3 {[%clk 0:02:59.1]} 6... e6 {[%clk 0:02:58.4]} 7.
Bg5 {[%clk 0:02:57.4]} 7... Qa5+ {[%clk 0:02:57.3]} 8. Nd2 {[%clk 0:02:55.5]}
8... Qa6 {[%clk 0:02:56.3]} 9. Qg3 {[%clk 0:02:54.1]} 9... c5 {[%clk 0:02:35.9]}
10. Ne2 {[%clk 0:02:53.4]} 10... Nc6 {[%clk 0:02:32.3]} 11. c3 {[%clk
0:02:52.2]} 11... cxd4 {[%clk 0:02:16.8]} 12. Nxd4 {[%clk 0:02:51.8]} 12... Nxd4
{[%clk 0:02:14.9]} 13. cxd4 {[%clk 0:02:52.3]} 13... Nh6 {[%clk 0:02:12.6]} 14.
Bxh6 {[%clk 0:02:48.4]} 14... Rxh6 {[%clk 0:02:12.8]} 15. Qe3 {[%clk 0:02:37.8]}
15... Rc8 {[%clk 0:02:08.2]} 16. Qe2 {[%clk 0:02:37.8]} 16... Rc2 {[%clk
0:01:28.8]} 17. Qxa6 {[%clk 0:02:32.7]} 17... bxa6 {[%clk 0:01:29.7]} 18. Ke2
{[%clk 0:02:28.7]} 18... Bb4 {[%clk 0:01:25.4]} 19. Rhd1 {[%clk 0:02:28.8]}
19... Rxb2 {[%clk 0:01:06.4]} 20. Rab1 {[%clk 0:02:24.6]} 20... Rxb1 {[%clk
0:00:37.5]} 21. Rxb1 {[%clk 0:02:25.5]} 21... a5 {[%clk 0:00:37.2]} 22. Nf3
{[%clk 0:02:14.6]} 22... Kd7 {[%clk 0:00:35]} 23. Rb3 {[%clk 0:02:14]} 23... Kc6
{[%clk 0:00:31.9]} 24. a3 {[%clk 0:02:13.3]} 24... Be7 {[%clk 0:00:31.5]} 25. a4
{[%clk 0:02:12.7]} 25... Bb4 {[%clk 0:00:28.5]} 26. Rb1 {[%clk 0:02:12.8]} 26...
f6 {[%clk 0:00:27.7]} 27. Rc1+ {[%clk 0:02:12.4]} 27... Kd7 {[%clk 0:00:27.9]}
28. g3 {[%clk 0:02:07]} 28... Rh8 {[%clk 0:00:27.5]} 29. Kd3 {[%clk 0:02:02.3]}
29... Rc8 {[%clk 0:00:26.9]} 30. Rxc8 {[%clk 0:02:01.3]} 30... Kxc8 {[%clk
0:00:27.8]} 31. Ng1 {[%clk 0:01:58.3]} 31... Be1 {[%clk 0:00:25.2]} 32. Nh3
{[%clk 0:01:56]} 32... Kd7 {[%clk 0:00:23]} 33. Ke2 {[%clk 0:01:53.3]} 33... Bc3
{[%clk 0:00:19.6]} 34. Kd3 {[%clk 0:01:52.5]} 34... Be1 {[%clk 0:00:17.1]} 35.
Ke3 {[%clk 0:01:20]} 35... fxe5 {[%clk 0:00:13.1]} 36. dxe5 {[%clk 0:01:20]}
36... Kc6 {[%clk 0:00:06.4]} 37. Nf4 {[%clk 0:01:18.6]} 37... Kc5 {[%clk
0:00:05]} 38. Nxe6+ {[%clk 0:01:17.8]} 38... Kb4 {[%clk 0:00:05.1]} 39. Nxg7
{[%clk 0:01:06.3]} 39... Kxa4 {[%clk 0:00:04.2]} 40. e6 {[%clk 0:01:02.3]} 40...
Bb4 {[%clk 0:00:03.6]} 41. f4 {[%clk 0:00:32.1]} 41... Kb3 {[%clk 0:00:03.6]}
42. f5 {[%clk 0:00:32.3]} 42... Be7 {[%clk 0:00:01.4]} 43. Nxh5 {[%clk
0:00:30.7]} 43... a4 {[%clk 0:00:01.4]} 44. f6 {[%clk 0:00:31.1]} 44... Bc5+
{[%clk 0:00:01.7]} 45. Kf4 {[%clk 0:00:27.6]} 1-0

[Event "Early-Titled-Tuesday-Blitz-April-23-2024"]
[Site "Chess.com"]
[Date "2024.04.23"]
[Round "4"]
[White "frequentblunders"]
[Black "leoduarte"]
[Result "1-0"]
[WhiteElo "2207"]
[BlackElo "2331"]
[TimeControl "180+1"]
[EndTime "8:39:58 PDT"]
[Termination "frequentblunders won on time"]

1. e4 {[%clk 0:02:54]} 1... e5 {[%clk 0:02:56]} 2. Nc3 {[%clk 0:02:52.8]} 2...
Nf6 {[%clk 0:02:50.4]} 3. Nf3 {[%clk 0:02:52.2]} 3... Nc6 {[%clk 0:02:45.9]} 4.
d4 {[%clk 0:02:51.6]} 4... exd4 {[%clk 0:02:44.3]} 5. Nd5 {[%clk 0:02:51.9]}
5... d6 {[%clk 0:02:29.6]} 6. Nxd4 {[%clk 0:02:48.2]} 6... Nxd5 {[%clk 0:02:08]}
7. exd5 {[%clk 0:02:48.7]} 7... Nxd4 {[%clk 0:02:05.2]} 8. Qxd4 {[%clk
0:02:49.6]} 8... Bf5 {[%clk 0:01:58.5]} 9. Bb5+ {[%clk 0:02:48.7]} 9... Bd7
{[%clk 0:01:54.9]} 10. Bxd7+ {[%clk 0:02:29.3]} 10... Qxd7 {[%clk 0:01:51.7]}
11. Bg5 {[%clk 0:02:24.7]} 11... f6 {[%clk 0:01:41.4]} 12. Bf4 {[%clk
0:02:15.9]} 12... b6 {[%clk 0:01:34.5]} 13. O-O-O {[%clk 0:02:08.6]} 13... O-O-O
{[%clk 0:01:32.2]} 14. Rhe1 {[%clk 0:02:01.6]} 14... a5 {[%clk 0:01:30.1]} 15.
Re6 {[%clk 0:01:59.6]} 15... Be7 {[%clk 0:01:17.4]} 16. Rde1 {[%clk 0:01:57.5]}
16... Bf8 {[%clk 0:00:32]} 17. g4 {[%clk 0:01:54]} 17... Kb7 {[%clk 0:00:19.3]}
18. h4 {[%clk 0:01:48.8]} 18... Qb5 {[%clk 0:00:15]} 19. c4 {[%clk 0:01:43.6]}
19... Qb4 {[%clk 0:00:13.3]} 20. Bd2 {[%clk 0:01:22.2]} 20... Qc5 {[%clk
0:00:11.3]} 21. Qxc5 {[%clk 0:01:19.6]} 21... dxc5 {[%clk 0:00:12.2]} 22. h5
{[%clk 0:01:06]} 22... Bd6 {[%clk 0:00:09.5]} 23. h6 {[%clk 0:00:49.2]} 23...
gxh6 {[%clk 0:00:08]} 24. Rxf6 {[%clk 0:00:45.7]} 24... Rhf8 {[%clk 0:00:06.7]}
25. Ree6 {[%clk 0:00:41.1]} 25... Rxf6 {[%clk 0:00:05.7]} 26. Rxf6 {[%clk
0:00:40.9]} 26... Rg8 {[%clk 0:00:06.1]} 27. f3 {[%clk 0:00:36.8]} 27... h5
{[%clk 0:00:06.4]} 28. gxh5 {[%clk 0:00:33.5]} 28... Rg1+ {[%clk 0:00:04.7]} 29.
Kc2 {[%clk 0:00:32.8]} 29... Rg2 {[%clk 0:00:05.2]} 30. Kd3 {[%clk 0:00:27.1]}
30... Be5 {[%clk 0:00:04.9]} 31. Rf7 {[%clk 0:00:22.1]} 31... Rf2 {[%clk
0:00:02.5]} 32. b3 {[%clk 0:00:14.9]} 32... Bd4 {[%clk 0:00:02]} 33. Be3 {[%clk
0:00:11.2]} 1-0

[Event "Early-Titled-Tuesday-Blitz-April-23-2024"]
[Site "Chess.com"]
[Date "2024.04.23"]
[Round "4"]
[White "KononenkoD"]
[Black "N_I_Chess"]
[Result "1-0"]
[WhiteElo "2604"]
[BlackElo "2394"]
[TimeControl "180+1"]
[EndTime "8:39:59 PDT"]
[Termination "KononenkoD won on time"]

1. e4 {[%clk 0:03:00.9]} 1... Nf6 {[%clk 0:03:00.9]} 2. e5 {[%clk 0:03:00.7]}
2... Nd5 {[%clk 0:03:01.5]} 3. Nc3 {[%clk 0:03:01.3]} 3... Nb6 {[%clk
0:02:57.1]} 4. d4 {[%clk 0:02:55.7]} 4... d6 {[%clk 0:02:57.3]} 5. Nf3 {[%clk
0:02:55.8]} 5... g6 {[%clk 0:02:53]} 6. h4 {[%clk 0:02:54.4]} 6... h5 {[%clk
0:02:52.3]} 7. Bd3 {[%clk 0:02:45]} 7... Bg7 {[%clk 0:02:48.3]} 8. Qe2 {[%clk
0:02:41.8]} 8... Bg4 {[%clk 0:02:45.8]} 9. Bf4 {[%clk 0:02:33.3]} 9... Nc6
{[%clk 0:02:37.7]} 10. exd6 {[%clk 0:02:30.6]} 10... cxd6 {[%clk 0:02:33.9]} 11.
Qe3 {[%clk 0:02:29]} 11... O-O {[%clk 0:02:15.9]} 12. Bh6 {[%clk 0:02:19.3]}
12... Nb4 {[%clk 0:02:08.3]} 13. Bxg7 {[%clk 0:02:18.4]} 13... Kxg7 {[%clk
0:01:56]} 14. O-O-O {[%clk 0:02:17.5]} 14... Rc8 {[%clk 0:01:47.6]} 15. Rhe1
{[%clk 0:02:15.6]} 15... e6 {[%clk 0:01:43.6]} 16. Qg5 {[%clk 0:02:07.2]} 16...
Bxf3 {[%clk 0:01:33.4]} 17. Qxd8 {[%clk 0:02:03]} 17... Rfxd8 {[%clk 0:01:30.7]}
18. gxf3 {[%clk 0:02:03.6]} 18... a6 {[%clk 0:01:11.4]} 19. Bf1 {[%clk
0:02:03.2]} 19... Rc7 {[%clk 0:01:09.7]} 20. a3 {[%clk 0:01:59.1]} 20... N4d5
{[%clk 0:01:06.6]} 21. Ne4 {[%clk 0:01:56.9]} 21... Rdc8 {[%clk 0:00:48.2]} 22.
c3 {[%clk 0:01:54.6]} 22... Rc6 {[%clk 0:00:45.7]} 23. Kb1 {[%clk 0:01:49]}
23... Nf4 {[%clk 0:00:35.2]} 24. Re3 {[%clk 0:01:48.4]} 24... Nbd5 {[%clk
0:00:35]} 25. Ng5 {[%clk 0:01:31.2]} 25... Nxe3 {[%clk 0:00:27.2]} 26. fxe3
{[%clk 0:01:32.1]} 26... Nd5 {[%clk 0:00:23.6]} 27. Re1 {[%clk 0:01:32.6]} 27...
Rb6 {[%clk 0:00:19.9]} 28. Kc2 {[%clk 0:01:29.9]} 28... Ne7 {[%clk 0:00:18.3]}
29. e4 {[%clk 0:01:25.6]} 29... Rd8 {[%clk 0:00:16.9]} 30. Bh3 {[%clk
0:01:17.1]} 30... a5 {[%clk 0:00:10.5]} 31. Bxe6 {[%clk 0:01:14.1]} 31... Rf8
{[%clk 0:00:10.8]} 32. Bh3 {[%clk 0:01:08.8]} 32... Rc6 {[%clk 0:00:10.8]} 33.
Kd3 {[%clk 0:01:07]} 33... Rc7 {[%clk 0:00:10.6]} 34. f4 {[%clk 0:01:05.6]}
34... b5 {[%clk 0:00:10]} 35. e5 {[%clk 0:01:04.3]} 35... dxe5 {[%clk 0:00:09]}
36. fxe5 {[%clk 0:01:04]} 36... b4 {[%clk 0:00:09]} 37. axb4 {[%clk 0:01:03.2]}
37... axb4 {[%clk 0:00:09.9]} 38. c4 {[%clk 0:01:01.3]} 38... b3 {[%clk
0:00:09.5]} 39. d5 {[%clk 0:00:56.7]} 39... Ra7 {[%clk 0:00:04.7]} 40. e6 {[%clk
0:00:52.8]} 40... f6 {[%clk 0:00:03.7]} 41. Ne4 {[%clk 0:00:51.7]} 41... Rd8
{[%clk 0:00:02.7]} 42. Kc3 {[%clk 0:00:49.5]} 42... Rb7 {[%clk 0:00:01.9]} 43.
d6 {[%clk 0:00:46.6]} 43... Nc6 {[%clk 0:00:02.4]} 44. c5 {[%clk 0:00:44]} 1-0

[Event "Early-Titled-Tuesday-Blitz-April-23-2024"]
[Site "Chess.com"]
[Date "2024.04.23"]
[Round "4"]
[White "Larina_Maria"]
[Black "Pelusiansky"]
[Result "0-1"]
[WhiteElo "2339"]
[BlackElo "2545"]
[TimeControl "180+1"]
[EndTime "8:39:59 PDT"]
[Termination "Pelusiansky won by resignation"]

1. e4 {[%clk 0:03:00.9]} 1... e5 {[%clk 0:02:59]} 2. Nf3 {[%clk 0:03:00.5]} 2...
Nf6 {[%clk 0:02:58.9]} 3. Nc3 {[%clk 0:03:00.3]} 3... Nc6 {[%clk 0:02:57.8]} 4.
Bb5 {[%clk 0:03:00.7]} 4... Bb4 {[%clk 0:02:54.2]} 5. O-O {[%clk 0:02:59.6]}
5... O-O {[%clk 0:02:52.8]} 6. d3 {[%clk 0:02:59.3]} 6... Bxc3 {[%clk
0:02:52.1]} 7. bxc3 {[%clk 0:02:59.3]} 7... d6 {[%clk 0:02:52.3]} 8. Nd2 {[%clk
0:02:58.1]} 8... Ne7 {[%clk 0:02:49.6]} 9. d4 {[%clk 0:02:57.5]} 9... Ng6 {[%clk
0:02:41.6]} 10. dxe5 {[%clk 0:02:53.9]} 10... Nxe5 {[%clk 0:02:35.2]} 11. f4
{[%clk 0:02:50.5]} 11... Nc6 {[%clk 0:02:29.6]} 12. Qf3 {[%clk 0:02:39.2]} 12...
a6 {[%clk 0:02:22.8]} 13. Bd3 {[%clk 0:02:38]} 13... Nd7 {[%clk 0:02:23.2]} 14.
Bb2 {[%clk 0:02:22.4]} 14... Nc5 {[%clk 0:02:22.5]} 15. c4 {[%clk 0:02:16.9]}
15... f6 {[%clk 0:02:13.6]} 16. a4 {[%clk 0:02:13.4]} 16... a5 {[%clk
0:02:11.8]} 17. Nb3 {[%clk 0:02:08.6]} 17... Nxd3 {[%clk 0:02:07.4]} 18. cxd3
{[%clk 0:02:07.5]} 18... Nb4 {[%clk 0:01:52.7]} 19. Rfd1 {[%clk 0:01:55.6]}
19... c6 {[%clk 0:01:48.9]} 20. d4 {[%clk 0:01:49]} 20... d5 {[%clk 0:01:44.7]}
21. cxd5 {[%clk 0:01:41.6]} 21... cxd5 {[%clk 0:01:44.4]} 22. e5 {[%clk
0:01:40.8]} 22... Bf5 {[%clk 0:01:42.7]} 23. Nc5 {[%clk 0:01:37.2]} 23... b6
{[%clk 0:01:16.3]} 24. Nb3 {[%clk 0:01:28.2]} 24... Be4 {[%clk 0:01:14.9]} 25.
Qe3 {[%clk 0:01:20.7]} 25... Nc2 {[%clk 0:01:13.1]} 26. Qd2 {[%clk 0:01:20.6]}
26... Nxa1 {[%clk 0:01:11.8]} 27. Rxa1 {[%clk 0:01:21.5]} 27... Qd7 {[%clk
0:01:10.8]} 28. Qe3 {[%clk 0:01:14.7]} 28... Rac8 {[%clk 0:01:09.9]} 29. Nd2
{[%clk 0:01:14.5]} 29... Bf5 {[%clk 0:01:05.4]} 30. Ba3 {[%clk 0:01:13]} 30...
Rfe8 {[%clk 0:01:04.8]} 31. Nf3 {[%clk 0:01:07.9]} 31... Qxa4 {[%clk 0:01:02.5]}
32. Nh4 {[%clk 0:01:01.3]} 32... Qd7 {[%clk 0:00:58.3]} 33. h3 {[%clk
0:00:57.6]} 33... Rc2 {[%clk 0:00:54.4]} 34. g4 {[%clk 0:00:56.2]} 34... Bxg4
{[%clk 0:00:50.2]} 35. Qg3 {[%clk 0:00:32.7]} 35... Bxh3 {[%clk 0:00:41.7]} 36.
exf6 {[%clk 0:00:32.6]} 36... Ree2 {[%clk 0:00:41.7]} 37. Be7 {[%clk 0:00:20.8]}
37... Rg2+ {[%clk 0:00:39.2]} 38. Nxg2 {[%clk 0:00:19.7]} 38... Rxg2+ {[%clk
0:00:40.1]} 39. Qxg2 {[%clk 0:00:19.1]} 39... Bxg2 {[%clk 0:00:41]} 40. Kxg2
{[%clk 0:00:18.3]} 40... gxf6 {[%clk 0:00:40.4]} 41. Bxf6 {[%clk 0:00:18.9]}
41... Qg4+ {[%clk 0:00:40.6]} 42. Kh1 {[%clk 0:00:17.6]} 42... Qf3+ {[%clk
0:00:35.2]} 43. Kg1 {[%clk 0:00:16.2]} 43... Qxf4 {[%clk 0:00:31.9]} 44. Be5
{[%clk 0:00:16.6]} 44... Qg4+ {[%clk 0:00:31.1]} 45. Kf2 {[%clk 0:00:17.1]}
45... Qf5+ {[%clk 0:00:29.1]} 46. Ke3 {[%clk 0:00:17.2]} 46... Qe4+ {[%clk
0:00:29.1]} 47. Kd2 {[%clk 0:00:17.1]} 47... h5 {[%clk 0:00:27.7]} 48. Rg1+
{[%clk 0:00:16.3]} 48... Kf7 {[%clk 0:00:28]} 49. Rg6 {[%clk 0:00:16.8]} 49...
Kxg6 {[%clk 0:00:27.9]} 0-1

[Event "Early-Titled-Tuesday-Blitz-April-23-2024"]
[Site "Chess.com"]
[Date "2024.04.23"]
[Round "4"]
[White "maracayo"]
[Black "AlexTruskavetsky"]
[Result "0-1"]
[WhiteElo "2350"]
[BlackElo "2678"]
[TimeControl "180+1"]
[EndTime "8:39:59 PDT"]
[Termination "AlexTruskavetsky won by resignation"]

1. e4 {[%clk 0:03:00.9]} 1... c5 {[%clk 0:02:54.7]} 2. Nf3 {[%clk 0:03:00.5]}
2... Nc6 {[%clk 0:02:54.7]} 3. Bb5 {[%clk 0:02:58.1]} 3... g6 {[%clk 0:02:53.8]}
4. O-O {[%clk 0:02:57.6]} 4... Nf6 {[%clk 0:02:52.4]} 5. Re1 {[%clk 0:02:56.9]}
5... Bg7 {[%clk 0:02:51.9]} 6. Bxc6 {[%clk 0:02:54.8]} 6... dxc6 {[%clk
0:02:52.8]} 7. d3 {[%clk 0:02:55.2]} 7... O-O {[%clk 0:02:52.5]} 8. Nbd2 {[%clk
0:02:54.5]} 8... Ne8 {[%clk 0:02:48.9]} 9. a4 {[%clk 0:02:53.6]} 9... e5 {[%clk
0:02:48.2]} 10. a5 {[%clk 0:02:52.9]} 10... Be6 {[%clk 0:02:46.4]} 11. b3 {[%clk
0:02:50.2]} 11... f6 {[%clk 0:02:44.1]} 12. Nc4 {[%clk 0:02:40.6]} 12... Nc7
{[%clk 0:02:30.1]} 13. Be3 {[%clk 0:02:36.4]} 13... Qe7 {[%clk 0:02:29.6]} 14.
c3 {[%clk 0:02:16.4]} 14... Rfd8 {[%clk 0:02:24.6]} 15. Qc2 {[%clk 0:02:16.3]}
15... Rd7 {[%clk 0:02:23.9]} 16. h3 {[%clk 0:02:07.4]} 16... Rad8 {[%clk
0:02:22.7]} 17. Red1 {[%clk 0:02:06.6]} 17... Nb5 {[%clk 0:02:21.7]} 18. Nb2
{[%clk 0:01:43.9]} 18... Qf7 {[%clk 0:02:08.6]} 19. Nd2 {[%clk 0:01:38.3]} 19...
Bf8 {[%clk 0:02:05.3]} 20. Ndc4 {[%clk 0:01:32.7]} 20... Nc7 {[%clk 0:01:56.2]}
21. Na4 {[%clk 0:01:26.9]} 21... Na6 {[%clk 0:01:55.7]} 22. Rd2 {[%clk
0:01:06.9]} 22... h5 {[%clk 0:01:47.2]} 23. f3 {[%clk 0:01:04.9]} 23... Qg7
{[%clk 0:01:33.8]} 24. Rf1 {[%clk 0:00:44.2]} 24... g5 {[%clk 0:01:28.9]} 25.
Qd1 {[%clk 0:00:39.2]} 25... h4 {[%clk 0:01:27.3]} 26. Qe2 {[%clk 0:00:33.6]}
26... Qh7 {[%clk 0:01:26.8]} 27. Qf2 {[%clk 0:00:30.8]} 27... Qe7 {[%clk
0:01:20.1]} 28. Rb1 {[%clk 0:00:29.2]} 28... Rxd3 {[%clk 0:01:15.8]} 29. Rxd3
{[%clk 0:00:23]} 29... Rxd3 {[%clk 0:01:16.7]} 30. Nd2 {[%clk 0:00:20]} 30...
Qd7 {[%clk 0:01:12.5]} 31. c4 {[%clk 0:00:17]} 31... Qd8 {[%clk 0:01:06.4]} 32.
Nf1 {[%clk 0:00:16.9]} 32... Qxa5 {[%clk 0:01:06.3]} 33. Qe2 {[%clk 0:00:15.8]}
33... Rd7 {[%clk 0:01:05.4]} 34. Rd1 {[%clk 0:00:14.7]} 34... Qd8 {[%clk
0:01:05.4]} 35. Rxd7 {[%clk 0:00:13.1]} 35... Qxd7 {[%clk 0:01:06.3]} 36. Qa2
{[%clk 0:00:11.6]} 36... Nb4 {[%clk 0:01:04.8]} 37. Qd2 {[%clk 0:00:10.7]} 37...
Qxd2 {[%clk 0:01:04.3]} 38. Nxd2 {[%clk 0:00:11.6]} 38... b6 {[%clk 0:01:03.9]}
39. Kf1 {[%clk 0:00:11.6]} 39... Kf7 {[%clk 0:01:03.7]} 40. Ke2 {[%clk
0:00:10.8]} 40... Na6 {[%clk 0:01:03.8]} 41. Nc3 {[%clk 0:00:10.2]} 41... Nc7
{[%clk 0:01:03.8]} 42. Na4 {[%clk 0:00:09.5]} 42... Bd6 {[%clk 0:01:03.4]} 43.
Nb1 {[%clk 0:00:08.4]} 43... Na6 {[%clk 0:01:02.4]} 44. Nbc3 {[%clk 0:00:07.6]}
44... Bd7 {[%clk 0:01:02.7]} 45. Nd1 {[%clk 0:00:07.3]} 45... b5 {[%clk
0:01:02.9]} 46. Nab2 {[%clk 0:00:07.4]} 46... Nc7 {[%clk 0:01:03.3]} 47. Nc3
{[%clk 0:00:07.2]} 47... a5 {[%clk 0:01:03.8]} 48. Nd3 {[%clk 0:00:06]} 48...
Na6 {[%clk 0:01:04.1]} 49. cxb5 {[%clk 0:00:05.5]} 49... cxb5 {[%clk 0:01:04.4]}
50. Nd5 {[%clk 0:00:06.4]} 50... Be6 {[%clk 0:01:03.2]} 51. Nb2 {[%clk
0:00:05.7]} 51... Bxd5 {[%clk 0:01:03.4]} 52. exd5 {[%clk 0:00:06.5]} 52... Nc7
{[%clk 0:01:04]} 53. Kd3 {[%clk 0:00:07]} 53... Nxd5 {[%clk 0:01:04.1]} 54. Bd2
{[%clk 0:00:06.7]} 54... Nb4+ {[%clk 0:01:02.8]} 55. Bxb4 {[%clk 0:00:05.6]}
55... cxb4 {[%clk 0:01:03.7]} 56. Ke4 {[%clk 0:00:06]} 56... Ke6 {[%clk
0:01:04]} 57. Kd3 {[%clk 0:00:05.2]} 57... f5 {[%clk 0:01:04.9]} 58. Ke2 {[%clk
0:00:04.3]} 58... Bc5 {[%clk 0:01:05.3]} 0-1

[Event "Early-Titled-Tuesday-Blitz-April-23-2024"]
[Site "Chess.com"]
[Date "2024.04.23"]
[Round "4"]
[White "Carow-Kann"]
[Black "KhazhatulyAlikhan"]
[Result "0-1"]
[WhiteElo "2665"]
[BlackElo "2476"]
[TimeControl "180+1"]
[EndTime "8:40:01 PDT"]
[Termination "KhazhatulyAlikhan won by checkmate"]

1. d4 {[%clk 0:03:00.9]} 1... d5 {[%clk 0:02:55.9]} 2. Nf3 {[%clk 0:03:00.8]}
2... Bf5 {[%clk 0:02:40]} 3. g3 {[%clk 0:02:46.5]} 3... Nf6 {[%clk 0:02:32.4]}
4. Bg2 {[%clk 0:02:46.5]} 4... e6 {[%clk 0:02:29.4]} 5. c4 {[%clk 0:02:46.4]}
5... c6 {[%clk 0:02:26.8]} 6. Qb3 {[%clk 0:02:43.6]} 6... Qb6 {[%clk 0:02:05.8]}
7. Nc3 {[%clk 0:02:40.5]} 7... Qxb3 {[%clk 0:01:54.4]} 8. axb3 {[%clk
0:02:40.4]} 8... Be7 {[%clk 0:01:52.6]} 9. c5 {[%clk 0:02:33.4]} 9... O-O {[%clk
0:01:50]} 10. b4 {[%clk 0:02:33.5]} 10... Na6 {[%clk 0:01:39.7]} 11. b5 {[%clk
0:02:29.4]} 11... Nb4 {[%clk 0:01:38.5]} 12. Ra4 {[%clk 0:02:15.3]} 12... a5
{[%clk 0:01:32.9]} 13. Bf4 {[%clk 0:01:59.1]} 13... Nc2+ {[%clk 0:01:21.4]} 14.
Kd2 {[%clk 0:01:54.8]} 14... cxb5 {[%clk 0:01:21.7]} 15. Nxb5 {[%clk 0:01:48.3]}
15... Ne4+ {[%clk 0:01:21.2]} 16. Kc1 {[%clk 0:01:37]} 16... Rac8 {[%clk
0:01:03.1]} 17. g4 {[%clk 0:01:12.9]} 17... Bg6 {[%clk 0:01:00.2]} 18. Ne5
{[%clk 0:01:07.4]} 18... Bxc5 {[%clk 0:00:41.5]} 19. Kxc2 {[%clk 0:00:54]} 19...
Bxd4+ {[%clk 0:00:27.7]} 20. Kb3 {[%clk 0:00:28.6]} 20... Nc5+ {[%clk
0:00:26.3]} 21. Ka3 {[%clk 0:00:28.4]} 21... Bxb2+ {[%clk 0:00:25.8]} 22. Kxb2
{[%clk 0:00:26.4]} 22... Nxa4+ {[%clk 0:00:23.1]} 23. Ka3 {[%clk 0:00:25.1]}
23... Nc3 {[%clk 0:00:21.3]} 24. Nd6 {[%clk 0:00:22.2]} 24... Rc7 {[%clk
0:00:20.1]} 25. e3 {[%clk 0:00:17.3]} 25... b5 {[%clk 0:00:18.1]} 26. Nxg6
{[%clk 0:00:12.2]} 26... b4+ {[%clk 0:00:13.6]} 27. Kb3 {[%clk 0:00:11.9]} 27...
a4+ {[%clk 0:00:09]} 28. Kxb4 {[%clk 0:00:11.4]} 28... Rb8+ {[%clk 0:00:08.2]}
29. Nb7 {[%clk 0:00:02.6]} 29... Rbxb7+ {[%clk 0:00:03.5]} 30. Ka5 {[%clk
0:00:03.1]} 30... Rc6 {[%clk 0:00:02.2]} 31. Ne5 {[%clk 0:00:01.7]} 31... Ra7+
{[%clk 0:00:02.1]} 32. Kb4 {[%clk 0:00:01.3]} 32... Rb7+ {[%clk 0:00:02.7]} 33.
Ka5 {[%clk 0:00:01.2]} 33... Rb5# {[%clk 0:00:03.3]} 0-1